fUSD/lending_fUSD_20260404
["ID","MTS","AMOUNT","RATE_DAILY","PERIOD"]
[419658706,1775260824602,150.0,0.00010959,2]
[419658708,1775260866155,500.0,0.00010938,2]
[419658710,1775260950151,832.52001729,0.0001,2]
[419658712,1775261028047,311.4355,0.00010938,2]
[419658713,1775261043869,4759.38,0.00010459,2]
[419658715,1775261078766,655.48,0.00010413,2]
[419658717,1775261185820,3441.19448271,0.0001035,2]
[419658718,1775261185845,7084.66551729,0.0001035,2]
[419658721,1775261233616,500.0,0.00011039,2]
[419658722,1775261234791,500.0,0.00011039,2]
[419658723,1775261234955,500.0,0.00011039,2]
[419658724,1775261235494,500.0,0.00011039,2]
[419658725,1775261235873,500.0,0.00011039,2]
[419658726,1775261236217,415.34448271,0.00011039,2]
[419658727,1775261236241,84.65551729,0.00011039,2]
[419658728,1775261236815,500.0,0.00011039,2]
[419658729,1775261237869,500.0,0.00011039,2]
[419658730,1775261238821,500.0,0.00011039,2]
[419658731,1775261238999,151.0,0.00011039,2]
[419658732,1775261239054,500.0,0.00011039,2]
[419658733,1775261239098,-250.0,0.00011039,2]
[419658734,1775261239128,-600.0,0.00011039,2]
[419658735,1775261239496,151.0,0.00011039,2]
[419658736,1775261239642,500.0,0.00011039,2]
[419658737,1775261240137,151.0,0.00011039,2]
[419658738,1775261240298,500.0,0.00011039,2]
[419658739,1775261240689,151.0,0.00011039,2]
[419658740,1775261241382,151.0,0.00011039,2]
[419658741,1775261242006,500.0,0.00011039,2]
[419658742,1775261242414,151.0,0.00011039,2]
[419658743,1775261242627,500.0,0.00011039,2]
[419658744,1775261243047,151.0,0.00011039,2]
[419658745,1775261243211,500.0,0.00011039,2]
[419658746,1775261243645,151.0,0.00011039,2]
[419658747,1775261243825,500.0,0.00011039,2]
[419658748,1775261244305,151.0,0.00011039,2]
[419658749,1775261244439,500.0,0.00011039,2]
[419658750,1775261245199,151.0,0.00011039,2]
[419658751,1775261245264,500.0,0.00011039,2]
[419658752,1775261245393,151.0,0.00011039,2]
[419658753,1775261245648,500.0,0.00011039,2]
[419658754,1775261245728,151.0,0.00011039,2]
[419658755,1775261245919,151.0,0.00011039,2]
[419658756,1775261246252,500.0,0.00011039,2]
[419658757,1775261246375,151.0,0.00011039,2]
[419658758,1775261246549,151.0,0.00011039,2]
[419658759,1775261246835,500.0,0.00011039,2]
[419658760,1775261247080,151.0,0.00011039,2]
[419658761,1775261247110,151.0,0.00011039,2]
[419658762,1775261247429,384.01,0.00011039,2]
[419658763,1775261247452,115.99,0.00011039,2]
[419658764,1775261247673,151.0,0.00011039,2]
[419658765,1775261247702,151.0,0.00011039,2]
[419658766,1775261248033,500.0,0.00011039,2]
[419658767,1775261248284,151.0,0.00011039,2]
[419658768,1775261248457,151.0,0.00011039,2]
[419658769,1775261248623,200.0,0.000105,3]
[419658770,1775261248897,151.0,0.00011039,2]
[419658771,1775261248931,151.0,0.00011039,2]
[419658772,1775261249504,151.0,0.00011039,2]
[419658773,1775261249533,151.0,0.00011039,2]
[419658774,1775261250092,151.0,0.00011039,2]
[419658775,1775261250122,151.0,0.00011039,2]
[419658776,1775261250702,151.0,0.00011039,2]
[419658777,1775261250731,151.0,0.00011039,2]
[419658778,1775261250760,400.0,0.000106,3]
[419658779,1775261251298,151.0,0.00011039,2]
[419658780,1775261251328,151.0,0.00011039,2]
[419658781,1775261252827,600.0,0.000107,3]
[419658782,1775261254923,800.0,0.000108,3]
[419658783,1775261257017,1000.0,0.000109,3]
[419658784,1775261258655,8200.01,8e-05,2]
[419658785,1775261258678,10000.01,8e-05,2]
[419658786,1775261258700,5533.22117273,8e-05,2]
[419658787,1775261262621,4466.78882727,0.00011,2]
[419658788,1775261262644,1243.54993252,0.00011,2]
[419658790,1775261281322,300.0,0.0001104,2]
[419658791,1775261283435,1043.1385,0.00010941,2]
[419658792,1775261303429,8656.8715,0.00011031,2]
[419658793,1775261303456,10000.01,0.00011031,2]
[419658794,1775261303483,10000.01,0.00011031,2]
[419658795,1775261303510,10000.01,0.00011031,2]
[419658796,1775261303537,10000.01,0.00011031,2]
[419658797,1775261303564,10000.01,0.00011031,2]
[419658798,1775261345111,-300.0,0.0001102,2]
[419658799,1775261345131,-11766.5843553,0.00011021,2]
[419658800,1775261345152,-150.0,0.0001103,2]
[419658801,1775261345175,-42294.3712431,0.00011031,2]
[419658802,1775261358233,2000.0,0.00010239,2]
[419658803,1775261364227,-38949.47338536,0.00011031,2]
[419658804,1775261369634,2157.69240503,0.00010941,2]
[419658805,1775261370668,2842.31759497,0.00010999,2]
[419658806,1775261370696,5000.01,0.00010999,2]
[419658807,1775261370734,5000.01,0.00010999,2]
[419658808,1775261370766,5000.01,0.00010999,2]
[419658809,1775261370797,5000.01,0.00010999,2]
[419658810,1775261370830,5000.01,0.00010999,2]
[419658811,1775261370862,5000.01,0.00010999,2]
[419658812,1775261370894,10000.01,0.00010999,2]
[419658813,1775261370927,10000.01,0.00010999,2]
[419658814,1775261370957,10000.01,0.00010999,2]
[419658815,1775261370990,10000.01,0.00010999,2]
[419658816,1775261371023,10000.01,0.00010999,2]
[419658817,1775261371054,10000.01,0.00010999,2]
[419658818,1775261371085,10000.01,0.00010999,2]
[419658819,1775261371115,10000.01,0.00010999,2]
[419658820,1775261371146,10000.01,0.00010999,2]
[419658821,1775261371176,10000.01,0.00010999,2]
[419658822,1775261400950,300.0,0.00010998,2]
[419658823,1775261401001,1200.0,0.00010998,2]
[419658824,1775261401088,300.0,0.00010998,2]
[419658826,1775261410080,3200.01,9.5e-05,3]
[419658827,1775261410101,5000.01,9.5e-05,3]
[419658828,1775261410123,5000.01,9.5e-05,3]
[419658829,1775261410145,5000.01,9.5e-05,3]
[419658830,1775261410166,5000.01,9.5e-05,3]
[419658831,1775261410189,5000.01,9.5e-05,3]
[419658832,1775261410210,10000.01,9.5e-05,3]
[419658833,1775261410231,5000.01,9.5e-05,3]
[419658834,1775261410255,10000.01,9.5e-05,3]
[419658835,1775261410278,5000.01,9.5e-05,3]
[419658836,1775261410300,10000.01,9.5e-05,3]
[419658837,1775261410321,5000.01,9.5e-05,3]
[419658838,1775261410343,5000.01,9.5e-05,3]
[419658839,1775261410364,10000.01,9.5e-05,3]
[419658840,1775261410386,10000.01,9.5e-05,3]
[419658841,1775261410408,10000.01,9.5e-05,3]
[419658842,1775261410429,10000.01,9.5e-05,3]
[419658843,1775261410452,6312.1936519,9.5e-05,3]
[419658844,1775261415673,3687.8163481,0.00010931,2]
[419658845,1775261415698,3633.08202414,0.00010931,2]
[419658846,1775261417602,1737.83248956,0.000109,2]
[419658847,1775261419624,359.53338277,0.00010989,2]
[419658858,1775261432293,-10538.15671731,0.00010999,2]
[419658859,1775261432305,-406.50499985,0.00010999,2]
[419658860,1775261432317,-673.699995,0.00010999,2]
[419658861,1775261433292,-1130.87856688,0.00010999,2]
[419658862,1775261433345,-308.2248215,0.00010999,2]
[419658863,1775261433357,-1862.303204,0.00010999,2]
[419658864,1775261433399,-63178.68492501,0.00010999,2]
[419658865,1775261433455,-400.45,0.00010999,2]
[419658866,1775261433468,-360.80856145,0.00010999,2]
[419658867,1775261433480,-834.3403945,0.00010999,2]
[419658868,1775261433492,-139824.2605796,0.00010999,2]
[419658869,1775261433505,-8155.06175609,0.00010999,2]
[419658874,1775261438367,-4509.0,0.00010999,2]
[419658875,1775261438420,-500.0,0.00010999,2]
[419658876,1775261438478,-53200.3487441,0.00010999,2]
[419658877,1775261438791,-1858737.4206216,0.00010999,2]
[419658930,1775261440522,-624.0438724,0.00010999,2]
[419658931,1775261440576,-221913.33464574,0.00010999,2]
[419658932,1775261440585,-247937.36967154,0.00011031,2]
[419658933,1775261440594,-2500.0,0.00011041,2]
[419658934,1775261440603,-250.0,0.00011041,2]
[419658935,1775261440613,-600.0,0.00011041,2]
[419658936,1775261440622,-153.64087258,0.00011041,2]
[419658937,1775261440631,-2068.58815796,0.00011042,2]
[419658938,1775261440640,-600.0,0.00011053,2]
[419658939,1775261440650,-444.96856752,0.00011073,2]
[419658940,1775261440659,-222.39121788,0.00011073,2]
[419658941,1775261440667,-2201.90836272,0.00011073,2]
[419658942,1775261440676,-1654.47757222,0.00011073,2]
[419658943,1775261440686,-1095.88590147,0.00011099,2]
[419658944,1775261440695,-18859.9890048,0.00011099,2]
[419658945,1775261440704,-3819.391,0.00011099,2]
[419658946,1775261440714,-216.73,0.00011099,2]
[419658947,1775261440724,-9999.99,0.00011099,2]
[419658948,1775261440732,-150.99,0.00011099,2]
[419658949,1775261440741,-299.99,0.00011099,2]
[419658950,1775261440750,-150.99,0.00011099,2]
[419658951,1775261440759,-9999.99,0.00011099,2]
[419658952,1775261440768,-200.0,0.00011123,2]
[419658953,1775261440777,-13504.0,0.00011123,2]
[419658954,1775261440786,-9999.99,0.00011131,2]
[419658955,1775261440795,-1871.06752635,0.00011135,2]
[419658956,1775261440804,-1000.0,0.0001114,2]
[419658957,1775261440813,-1000.0,0.0001114,2]
[419658958,1775261440822,-271.87413625,0.00011141,2]
[419658959,1775261440831,-500.0,0.00011173,2]
[419658960,1775261440840,-500.0,0.00011173,2]
[419658961,1775261440849,-500.0,0.00011173,2]
[419658962,1775261440858,-500.0,0.00011173,2]
[419658963,1775261440867,-200.0,0.00011234,2]
[419658964,1775261440876,-22706.2138,0.00011241,2]
[419658965,1775261440885,-1000.0,0.00011241,2]
[419658966,1775261440894,-265.10842309,0.00011273,2]
[419658967,1775261440903,-200.0,0.00011335,2]
[419658968,1775261440912,-151.0,0.00011339,2]
[419658969,1775261440921,-151.0,0.00011339,2]
[419658970,1775261440930,-155.782,0.0001134,2]
[419658971,1775261440939,-1625.42,0.00011371,2]
[419658972,1775261440948,-1248.4501219,0.00011493,2]
[419658973,1775261440957,-1865.31,0.00011507,2]
[419658974,1775261440966,-2000.0,0.00011519,2]
[419658975,1775261440975,-824.0,0.00011529,2]
[419658976,1775261440984,-420.0,0.00011566,2]
[419658977,1775261440994,-287.0,0.00011566,2]
[419658978,1775261441003,-360.0,0.00011606,2]
[419658979,1775261441011,-234.0,0.00011629,2]
[419658980,1775261441020,-500.0,0.00011629,2]
[419658981,1775261441030,-1777.0,0.00011683,2]
[419658982,1775261441039,-493.0,0.00011707,2]
[419658983,1775261441048,-1625.42,0.00011738,2]
[419658984,1775261441057,-500.0,0.00012053,2]
[419658985,1775261441066,-775.92,0.00012055,2]
[419658986,1775261441075,-255.0,0.00012078,2]
[419658987,1775261441084,-420.0,0.00012086,2]
[419658988,1775261441093,-420.0,0.00012086,2]
[419658989,1775261441102,-1200.0,0.00012098,2]
[419658990,1775261441111,-1625.42,0.00012104,2]
[419658991,1775261441120,-600.0,0.00012122,2]
[419658992,1775261441129,-300.0,0.00012134,2]
[419658993,1775261441138,-600.0,0.00012143,2]
[419658994,1775261441147,-250.0,0.00012143,2]
[419658995,1775261441157,-600.0,0.00012145,2]
[419658996,1775261441166,-250.0,0.00012145,2]
[419658997,1775261441175,-956.45,0.00012429,2]
[419658998,1775261441185,-1625.42,0.00012471,2]
[419658999,1775261441194,-155.0,0.00012474,2]
[419659000,1775261441203,-2000.0,0.00012798,2]
[419659001,1775261441212,-1625.42,0.00012838,2]
[419659002,1775261441222,-178.0540693,0.00012987,2]
[419659003,1775261441231,-187.98642448,0.00012987,2]
[419659004,1775261441240,-171.79691592,0.00012987,2]
[419659005,1775261441250,-179.36891777,0.00012987,2]
[419659006,1775261441260,-248.50475427,0.00012987,2]
[419659007,1775261441269,-259.43672549,0.00012987,2]
[419659008,1775261441278,-193.55573154,0.00012987,2]
[419659009,1775261441288,-221.35347426,0.00012987,2]
[419659010,1775261441297,-121338.94155469,0.00012999,2]
[419659011,1775261441307,-250.0,0.00013,2]
[419659012,1775261441317,-1806.8261483,0.00013,15]
[419659013,1775261441326,-514.0,0.00013111,2]
[419659014,1775261441335,-1625.42,0.00013205,2]
[419659015,1775261441345,-433.0,0.00013225,2]
[419659016,1775261441355,-5712.32,0.00013258,2]
[419659017,1775261441364,-459.31700785,0.0001326,2]
[419659018,1775261441373,-288.22335341,0.0001326,2]
[419659019,1775261441383,-503.1869838,0.0001326,2]
[419659020,1775261441392,-306.58577968,0.0001326,2]
[419659021,1775261441404,-236.77784423,0.0001326,2]
[419659022,1775261441415,-587.0,0.00013281,2]
[419659023,1775261441424,-159.55,0.00013321,2]
[419659024,1775261441434,-1625.42,0.00013572,2]
[419659025,1775261441444,-155.0,0.00013608,2]
[419659026,1775261441453,-4359.92,0.00013659,2]
[419659027,1775261441463,-500.0,0.00013698,2]
[419659028,1775261441472,-500.0,0.00013698,2]
[419659029,1775261441482,-500.0,0.00013698,2]
[419659030,1775261441491,-500.0,0.00013698,2]
[419659031,1775261441500,-500.0,0.00013698,2]
[419659032,1775261441510,-500.0,0.00013698,2]
[419659033,1775261441519,-500.0,0.00013698,2]
[419659034,1775261441528,-500.0,0.00013698,2]
[419659035,1775261441537,-649.06701174,0.00013698,2]
[419659036,1775261441546,-418.56315304,0.00013699,2]
[419659037,1775261441555,-500.0,0.00013699,2]
[419659038,1775261441564,-500.44640306,0.00013699,2]
[419659039,1775261441574,-527.58662996,0.00013699,2]
[419659040,1775261441583,-390.31346696,0.00013699,2]
[419659041,1775261441593,-500.0,0.00013699,2]
[419659042,1775261441603,-500.0,0.00013699,2]
[419659043,1775261441614,-500.0,0.00013699,2]
[419659044,1775261441624,-500.0,0.00013699,2]
[419659045,1775261441634,-500.30149331,0.00013699,2]
[419659046,1775261441643,-500.50490882,0.00013699,2]
[419659047,1775261441652,-500.0,0.00013699,2]
[419659048,1775261441661,-250.0,0.00013744,2]
[419659049,1775261441670,-956.45,0.0001381,2]
[419659050,1775261441679,-1371.36,0.00013822,2]
[419659051,1775261441688,-1625.42,0.00013938,2]
[419659052,1775261441698,-2000.0,0.00014078,2]
[419659053,1775261441707,-150.0,0.0001416,2]
[419659054,1775261441716,-20504.06,0.00014241,2]
[419659055,1775261441725,-1095.88590147,0.00014359,2]
[419659056,1775261441734,-18859.98900472,0.00014369,2]
[419659057,1775261441743,-1371.36,0.00014514,2]
[419659058,1775261441752,-823.0,0.00014594,2]
[419659059,1775261441761,-4759.38,0.00014643,2]
[419659060,1775261441770,-289.4942112,0.00014908,2]
[419659061,1775261441779,-300.0,0.00015,2]
[419659062,1775261441788,-197.55,0.00015068,2]
[419659063,1775261441798,-956.45,0.00015191,2]
[419659064,1775261441807,-1371.36,0.00015205,2]
[419659065,1775261441816,-7320.89837224,0.00015227,2]
[419659066,1775261441826,-166.66,0.00015314,2]
[419659067,1775261441836,-2000.0,0.00015358,2]
[419659068,1775261441847,-1166.04,0.00015507,2]
[419659069,1775261441857,-166.66,0.00015637,2]
[419659070,1775261441867,-155.0,0.00015876,2]
[419659071,1775261441876,-500.0,0.0001589,2]
[419659072,1775261441887,-500.0,0.0001589,2]
[419659073,1775261441896,-196.49362518,0.0001589,2]
[419659074,1775261441906,-2000.0,0.0001589,2]
[419659075,1775261441917,-1166.04,0.00015895,2]
[419659076,1775261441927,-1371.36,0.00015896,2]
[419659077,1775261441937,-68816.70847982,0.00015899,2]
[419659078,1775261441948,-150.0,0.000159,2]
[419659079,1775261441960,-150.0,0.000159,2]
[419659080,1775261441969,-150.0,0.000159,2]
[419659081,1775261441980,-150.0,0.000159,2]
[419659082,1775261441990,-200.0,0.000159,5]
[419659083,1775261442000,-150.0,0.000159,2]
[419659084,1775261442009,-166.66,0.00015959,2]
[419659085,1775261442017,-500.0,0.00015973,2]
[419659086,1775261442028,-500.0,0.00015973,2]
[419659087,1775261442039,-502.79307886,0.00015973,2]
[419659088,1775261442049,-359.53338277,0.0001599,2]
[419659089,1775261442059,-1852708.73199643,0.00016,2]
[419659090,1775261442068,-151.0,0.00016,2]
[419659091,1775261442078,-151.0,0.00016,2]
[419659092,1775261442088,-151.0,0.00016,2]
[419659093,1775261442100,-395900.78938978,0.00016,2]
[419659094,1775261442109,-1152.0,0.00016037,2]
[419659095,1775261442118,-271.8741362,0.00016118,2]
[419659096,1775261442127,-10000.0,0.00016147,2]
[419659097,1775261442136,-5000.00900012,0.000162,5]
[419659098,1775261442146,-166.66,0.00016281,2]
[419659099,1775261442155,-1166.04,0.00016282,2]
[419659100,1775261442164,-172.34,0.00016395,2]
[419659101,1775261442173,-158.35,0.00016438,2]
[419659102,1775261442183,-956.45,0.00016572,2]
[419659103,1775261442197,-1371.36,0.00016587,2]
[419659104,1775261442206,-166.66,0.00016604,2]
[419659105,1775261442216,-166.66,0.00016663,2]
[419659106,1775261442226,-1166.04,0.0001667,2]
[419659107,1775261442235,-500.0,0.00016714,2]
[419659108,1775261442244,-166.66,0.00016926,2]
[419659109,1775261442254,-1166.04,0.00017058,2]
[419659110,1775261442265,-166.66,0.00017213,2]
[419659111,1775261442275,-172.34,0.00017306,2]
[419659112,1775261442284,-1613.0,0.00017623,2]
[419659113,1775261442295,-1095.88590147,0.00017676,2]
[419659114,1775261442304,-18859.98900472,0.00017697,2]
[419659115,1775261442314,-166.66,0.00017764,2]
[419659116,1775261442324,-1365.54107307,0.0001789,2]
[419659117,1775261442335,-60861.15,0.00018109,2]
[419659118,1775261442344,-30058.56,0.00018128,2]
[419659119,1775261442354,-172.34,0.00018217,2]
[419659120,1775261442364,-166.66,0.00018314,2]
[419659121,1775261442373,-514.0,0.00018685,6]
[419659122,1775261442384,-166.66,0.00018864,2]
[419659123,1775261442394,-339.64,0.00019085,2]
[419659124,1775261442404,-172.34,0.00019128,2]
[419659125,1775261442413,-500.0,0.00019326,2]
[419659126,1775261442423,-500.0,0.00019326,2]
[419659127,1775261442432,-500.0,0.00019326,2]
[419659128,1775261442442,-500.0,0.00019326,2]
[419659129,1775261442451,-500.0,0.00019326,2]
[419659130,1775261442461,-500.0,0.00019326,2]
[419659131,1775261442471,-500.0,0.00019326,2]
[419659132,1775261442481,-500.0,0.00019326,2]
[419659133,1775261442492,-500.0,0.00019326,2]
[419659134,1775261442501,-500.0,0.00019326,2]
[419659135,1775261442511,-500.0,0.00019326,2]
[419659136,1775261442520,-500.0,0.00019326,2]
[419659137,1775261442531,-500.0,0.00019326,2]
[419659138,1775261442540,-500.0,0.00019326,2]
[419659139,1775261442550,-500.0,0.00019326,2]
[419659140,1775261442560,-500.0,0.00019326,2]
[419659141,1775261442569,-500.0,0.00019326,2]
[419659142,1775261442579,-500.0,0.00019326,2]
[419659143,1775261442588,-500.0,0.00019326,2]
[419659144,1775261442597,-500.0,0.00019326,2]
[419659145,1775261442607,-500.0,0.00019326,2]
[419659146,1775261442616,-500.0,0.00019326,2]
[419659147,1775261442625,-500.0,0.00019326,2]
[419659148,1775261442634,-151.0,0.00019326,2]
[419659149,1775261442643,-174.61919141,0.00019326,2]
[419659150,1775261442652,-619.0,0.00019366,2]
[419659151,1775261442661,-500.0,0.00019381,2]
[419659152,1775261442670,-151.0,0.00019381,2]
[419659153,1775261442679,-166.66,0.00019414,2]
[419659154,1775261442688,-500.0,0.00019436,2]
[419659155,1775261442697,-151.0,0.00019436,2]
[419659156,1775261442706,-500.0,0.00019491,2]
[419659157,1775261442715,-151.0,0.00019491,2]
[419659158,1775261442724,-7320.89837224,0.00019522,2]
[419659159,1775261442733,-500.0,0.00019546,2]
[419659160,1775261442742,-151.0,0.00019546,2]
[419659161,1775261442751,-500.0,0.00019601,2]
[419659162,1775261442759,-151.0,0.00019601,2]
[419659163,1775261442768,-500.0,0.00019656,2]
[419659164,1775261442777,-151.0,0.00019656,2]
[419659165,1775261442786,-500.0,0.00019711,2]
[419659166,1775261442795,-151.0,0.00019711,2]
[419659167,1775261443029,-500.0,0.00019766,2]
[419659169,1775261443046,-151.0,0.00019766,2]
[419659170,1775261443056,-500.0,0.00019821,2]
[419659171,1775261443065,-151.0,0.00019821,2]
[419659172,1775261443074,-181.08010149,0.00019874,2]
[419659173,1775261443084,-500.0,0.00019876,2]
[419659174,1775261443093,-151.0,0.00019876,2]
[419659175,1775261443102,-172.34,0.00020039,2]
[419659176,1775261443111,-155.0,0.00020412,2]
[419659177,1775261443120,-181.08010149,0.00020422,2]
[419659178,1775261443130,-218.07,0.00020855,2]
[419659179,1775261443139,-172.34,0.0002095,2]
[419659180,1775261443149,-1095.88590147,0.00020994,2]
[419659181,1775261443159,-18859.98900472,0.00021026,2]
[419659182,1775261443168,-271.8741362,0.00021094,2]
[419659183,1775261443178,-160.0,0.00021188,2]
[419659184,1775261443187,-158.35,0.00021575,2]
[419659185,1775261443196,-172.34,0.00021861,2]
[419659187,1775261443206,-5000.0,0.00021918,2]
[419659188,1775261443216,-383.0,0.00022,2]
[419659190,1775261443226,-1865.31,0.0002274,2]
[419659191,1775261443236,-172.34,0.00022771,2]
[419659193,1775261443246,-383.0,0.00023,2]
[419659194,1775261443255,-172.34,0.00023682,2]
[419659196,1775261443265,-7320.89837224,0.00023818,2]
[419659197,1775261443274,-383.0,0.00024,2]
[419659199,1775261443284,-514.0,0.00024259,11]
[419659200,1775261443293,-1095.88590147,0.00024312,2]
[419659202,1775261443303,-18859.98900472,0.00024354,2]
[419659204,1775261443312,-172.34,0.00024593,2]
[419659205,1775261443322,-1000.0,0.00024658,2]
[419659206,1775261443331,-226.80144541,0.000249,2]
[419659208,1775261443340,-383.0,0.00025,2]
[419659210,1775261443350,-5533.0,0.000255,5]
[419659211,1775261443359,-383.0,0.00026,2]
[419659213,1775261443368,-444.96856751,0.00026037,2]
[419659214,1775261443378,-1654.4775722,0.00026037,2]
[419659215,1775261443387,-271.8741362,0.00026071,2]
[419659216,1775261443398,-158.35,0.00026712,2]
[419659217,1775261443407,-393.0,0.00027,2]
[419659218,1775261443417,-1000.0,0.00027397,20]
[419659219,1775261443426,-151.0,0.00027397,2]
[419659220,1775261443436,-151.0,0.00027397,2]
[419659221,1775261443445,-1095.88590147,0.00027629,2]
[419659222,1775261443455,-18859.98900472,0.00027682,2]
[419659223,1775261443464,-7320.89837224,0.00028113,2]
[419659224,1775261443473,-1111.0,0.00029783,5]
[419659225,1775261443483,-514.0,0.00029833,16]
[419659226,1775261443492,-1095.88590147,0.00030947,2]
[419659227,1775261443502,-18859.98900472,0.0003101,2]
[419659228,1775261443512,-271.8741362,0.00031047,2]
[419659229,1775261443522,-158.35,0.00031849,30]
[419659230,1775261443531,-159.65,0.000336,30]
[419659231,1775261443540,-5759.84,0.000336,2]
[419659232,1775261443550,-2463.0,0.0003389,2]
[419659233,1775261443558,-6017.0,0.0003389,2]
[419659234,1775261443567,-1865.31,0.00033973,2]
[419659235,1775261443577,-1095.88590147,0.00034265,2]
[419659236,1775261443586,-18859.98900472,0.00034339,2]
[419659237,1775261443595,-383.0,0.00034393,30]
[419659238,1775261443605,-1500.0,0.00034795,2]
[419659239,1775261443614,-351.2263433,0.00035105,120]
[419659240,1775261443624,-646.9210908,0.00035105,120]
[419659241,1775261443633,-367.4678758,0.00035105,120]
[419659242,1775261443642,-315.0416991,0.00035105,120]
[419659243,1775261443652,-500.0,0.00035105,120]
[419659244,1775261443661,-606.3731155,0.00035105,120]
[419659245,1775261443670,-500.0,0.00035105,120]
[419659246,1775261443680,-500.0,0.00035105,120]
[419659247,1775261443689,-500.0,0.00035105,120]
[419659248,1775261443698,-500.0,0.00035105,120]
[419659249,1775261443708,-500.0,0.00035105,120]
[419659250,1775261443717,-500.0,0.00035105,120]
[419659251,1775261443726,-500.0,0.00035105,120]
[419659252,1775261443735,-246.4083485,0.00035105,120]
[419659253,1775261443745,-500.0,0.00035105,120]
[419659254,1775261443754,-500.0,0.00035105,120]
[419659255,1775261443763,-164.6005604,0.00035105,120]
[419659256,1775261443773,-549.6474402,0.00035105,120]
[419659257,1775261443782,-201.6534796,0.00035105,120]
[419659258,1775261443791,-823.8067803,0.00035105,120]
[419659259,1775261443801,-383.0,0.00035393,30]
[419659260,1775261443810,-514.0,0.00035407,21]
[419659261,1775261443819,-3819.392,0.00035824,43]
[419659262,1775261443828,-216.73,0.00035824,43]
[419659263,1775261443837,-271.8741362,0.00036024,2]
[419659264,1775261443846,-264.0,0.00036196,30]
[419659265,1775261443855,-474.0,0.00036196,30]
[419659266,1775261443864,-261.23807355,0.0003626,7]
[419659267,1775261443875,-302.0,0.0003626,7]
[419659268,1775261443885,-383.0,0.00036393,30]
[419659269,1775261443894,-5759.84,0.000366,2]
[419659270,1775261443904,-6017.0,0.0003689,2]
[419659271,1775261443913,-150.0,0.00036986,7]
[419659272,1775261443923,-150.0,0.00036986,7]
[419659273,1775261443932,-150.0,0.00036986,7]
[419659274,1775261443941,-150.19757992,0.00036986,7]
[419659275,1775261443950,-150.0,0.00036986,7]
[419659276,1775261443960,-150.0,0.00036986,7]
[419659277,1775261443969,-150.0,0.00036986,7]
[419659278,1775261443979,-150.0,0.00036986,7]
[419659279,1775261443988,-286.92407254,0.00036986,7]
[419659280,1775261443998,-150.0,0.00036986,7]
[419659281,1775261444008,-150.0,0.00036986,7]
[419659282,1775261444017,-150.0,0.00036986,7]
[419659283,1775261444027,-158.35,0.00036986,30]
[419659284,1775261444037,-1249.0,0.00037124,5]
[419659285,1775261444046,-995.0,0.00037124,5]
[419659286,1775261444055,-150.0,0.00037329,7]
[419659287,1775261444065,-150.0,0.0003736,7]
[419659288,1775261444074,-383.0,0.00037393,30]
[419659289,1775261444084,-150.0,0.000375,7]
[419659290,1775261444093,-1095.88590147,0.00037582,2]
[419659291,1775261444102,-18859.98900472,0.00037667,2]